bitfinex-derivatives/quotes_SOLF0:USTF0_20251101
["timestamp","ask_amount","ask_price","bid_price","bid_amount"]
[1762035125540,2.83,185.39,185.32,4.41034908]
[1762035125843,4.67525844,185.41,185.33,4.41034908]
[1762035126038,4.67525844,185.41,185.34,4.41034908]
[1762035126236,4.67525844,185.41,185.32,4.8584]
[1762035126237,2.83,185.4,185.35,4.41034908]
[1762035126442,2.83,185.4,185.32,4.8584]
[1762035126644,6.7,185.42,185.33,4.41115751]
[1762035126843,6.7,185.42,185.34,4.41115751]
[1762035127046,6.7,185.42,185.35,4.41115751]
[1762035127248,6.7,185.42,185.36,4.41115751]
[1762035127550,6.7,185.42,185.37,4.41115751]
[1762035127744,9.38,185.42,185.38,4.41115751]
[1762035128046,9.38,185.42,185.31,1.84525844]
[1762035128246,9.38,185.42,185.32,4.41202447]
[1762035128441,6.77,185.41,185.33,4.41202447]
[1762035128639,6.77,185.41,185.34,4.41202447]
[1762035128839,6.77,185.41,185.35,4.41202447]
[1762035129042,9.45,185.41,185.36,9.26952447]
[1762035129345,9.45,185.41,185.37,4.41202447]
[1762035129546,9.45,185.41,185.38,4.41202447]
[1762035129738,9.45,185.41,185.39,4.41202447]
[1762035129939,9.45,185.41,185.36,4.8575]
[1762035130139,9.45,185.41,185.37,4.41443058]
[1762035130338,9.45,185.41,185.38,4.41443058]
[1762035130536,9.45,185.41,185.39,4.41443058]
[1762035130738,9.45,185.41,185.36,4.8575]
[1762035131037,9.45,185.41,185.37,4.41542835]
[1762035131237,9.45,185.41,185.38,4.41542835]
[1762035131432,9.45,185.41,185.39,4.41542835]
[1762035131642,9.45,185.41,185.36,4.8575]
[1762035131842,9.45,185.41,185.37,4.41654048]
[1762035132142,9.45,185.41,185.38,4.41654048]
[1762035132338,6.77,185.41,185.39,4.41654048]
[1762035132533,6.77,185.41,185.4,4.41654048]
[1762035134547,9.45,185.41,185.4,4.41654048]
[1762035135445,9.45,185.41,185.34,1.84525844]
[1762035135646,9.45,185.41,185.35,4.42189384]
[1762035135849,2.68,185.4,185.36,4.42189384]
[1762035136151,4.44,185.39,185.37,4.42189384]
[1762035136340,4.44,185.39,185.38,4.42189384]
[1762035137647,7.12,185.39,185.38,4.42189384]
[1762035146664,4.44,185.39,185.38,4.42189384]
[1762035153062,7.37,185.39,185.38,4.42189384]
[1762035153265,7.37,185.39,185.33,1.84525844]
[1762035153555,4.44,185.39,185.33,1.84525844]
[1762035154961,4.44,185.39,185.33,6.70335844]
[1762035155456,4.44,185.39,185.33,1.84525844]
[1762035155961,4.44,185.39,185.33,8.54126528]
[1762035156163,4.44,185.39,185.35,4.8575]
[1762035156558,4.44,185.39,185.37,4.857]
[1762035158561,4.44,185.39,185.36,76.66]
[1762035158562,6.64602353,185.41,185.4,4.8565]
[1762035158763,2.22412969,185.41,185.4,4.8565]
[1762035160062,2.22412969,185.41,185.4,9.90287718]
[1762035160657,2.969e-05,185.41,185.4,10.98287718]
[1762035160857,2.7,185.49,185.43,4.8555]
[1762035162366,4.62,185.48,185.43,4.8555]
[1762035163063,4.62,185.48,185.45,4.8551]
[1762035163266,11.03,185.48,185.45,4.8551]
[1762035164873,2.7,185.65,185.46,83.33600684]
[1762035165166,2.7,185.65,185.51,5.03130169]
[1762035165468,2.7,185.65,185.54,5.03130169]
[1762035165662,2.7,185.65,185.55,4.3232576]
[1762035165863,2.7,185.65,185.56,81.5832576]
[1762035166063,2.7,185.65,185.57,7.20404802]
[1762035166365,2.7,185.65,185.57,2.88079042]
[1762035167262,2.7,185.63,185.57,2.88079042]
[1762035168662,7.89,185.62,185.57,2.88079042]
[1762035169670,2.7,185.61,185.57,2.88079042]
[1762035170261,2.7,185.61,185.55,2.88079042]
[1762035170461,2.7,185.61,185.54,80.14079042]
[1762035170765,2.7,185.61,185.54,2.88079042]
[1762035171175,2.7,185.61,185.54,7.37066029]
[1762035171368,2.7,185.61,185.57,2.88079042]
[1762035176073,2.7,185.61,185.54,2.88079042]
[1762035181076,2.7,185.59,185.54,2.88079042]
[1762035183267,2.7,185.57,185.45,5.03130169]
[1762035183472,2.7,185.57,185.48,2.88079042]
[1762035184382,2.7,185.53,185.48,2.88079042]
[1762035186076,2.7,185.53,185.44,4.8552]
[1762035186279,2.7,185.53,185.45,4.4446213]
[1762035186873,2.7,185.53,185.44,9.2998213]
[1762035188281,2.82,185.52,185.44,9.2998213]
[1762035188677,2.82,185.52,185.44,4.4446213]
[1762035191169,2.82,185.52,185.45,4.4446213]
[1762035191481,2.82,185.52,185.44,4.4446213]
[1762035191681,2.82,185.52,185.45,4.4446213]
[1762035191870,2.82,185.52,185.44,4.4446213]
[1762035192073,2.82,185.52,185.45,4.4446213]
[1762035192285,2.82,185.52,185.44,4.4446213]
[1762035192475,2.82,185.52,185.45,4.42176333]
[1762035192675,2.82,185.52,185.44,4.42176333]
[1762035192875,2.82,185.52,185.45,4.42176333]
[1762035193076,2.82,185.52,185.44,4.42176333]
[1762035193384,2.82,185.52,185.45,4.42176333]
[1762035193576,2.82,185.52,185.44,4.42176333]
[1762035193782,2.82,185.52,185.45,4.42176333]
[1762035193981,2.82,185.52,185.44,4.42176333]
[1762035194179,2.82,185.52,185.45,4.42176333]
[1762035194378,2.82,185.52,185.43,77.18]
[1762035194582,2.82,185.52,185.44,4.42449939]
[1762035194885,2.82,185.52,185.45,4.42449939]
[1762035195087,2.82,185.52,185.43,77.18]
[1762035195286,2.82,185.52,185.44,4.42600617]
[1762035195480,2.82,185.52,185.45,4.42600617]
[1762035195780,2.82,185.52,185.43,77.18]
[1762035195978,2.82,185.52,185.44,4.42600617]
[1762035196182,2.82,185.52,185.45,4.42600617]
[1762035196381,2.82,185.52,185.43,77.18]
[1762035196382,2.82,185.55,185.46,4.42600617]
[1762035196582,2.82,185.55,185.47,4.42600617]
[1762035196788,2.82,185.55,185.48,4.42600617]
[1762035197082,2.82,185.55,185.46,4.8546]
[1762035197083,7.6727,185.55,185.46,4.8546]
[1762035197287,2.82,185.54,185.47,4.42907552]
[1762035197587,2.82,185.54,185.48,4.42901752]
[1762035197786,2.82,185.54,185.43,82.21130169]
[1762035197787,7.673,185.54,185.44,4.8554]
[1762035197975,2.82,185.53,185.45,4.42915441]
[1762035198179,2.82,185.53,185.46,4.42915441]
[1762035198376,2.82,185.53,185.44,4.8554]
[1762035198589,2.82,185.51,185.45,4.43148819]
[1762035198776,2.82,185.51,185.46,4.43148819]
[1762035198777,2.82,185.5,185.46,4.43148819]
[1762035198978,2.82,185.5,185.41,9.88720169]
[1762035199279,2.82,185.5,185.42,4.43154768]
[1762035199480,2.82,185.5,185.43,4.43154768]
[1762035199680,2.82,185.5,185.41,86.98720169]
[1762035199681,2.82,185.5,185.44,4.43154768]
[1762035199877,2.82,185.5,185.45,4.43154768]
[1762035200083,2.82,185.5,185.46,4.43154768]
[1762035200288,2.82,185.5,185.42,5.03130169]
[1762035200490,2.82,185.5,185.43,4.43640347]
[1762035200689,2.82,185.5,185.44,4.43640347]
[1762035200889,2.82,185.5,185.45,4.43640347]
[1762035201091,2.82,185.5,185.42,5.03130169]
[1762035201092,2.82,185.5,185.46,4.43640347]
[1762035201289,2.82,185.5,185.42,9.88700169]
[1762035201489,2.82,185.5,185.43,4.43870566]
[1762035201691,2.82,185.5,185.44,4.43870566]
[1762035201886,2.82,185.5,185.45,4.43870566]
[1762035202097,2.82,185.5,185.46,4.44037877]
[1762035202293,2.82,185.5,185.42,4.8557]
[1762035202499,2.82,185.5,185.43,4.44037877]
[1762035202699,2.82,185.5,185.44,4.44037877]
[1762035202900,2.82,185.5,185.45,4.44037877]
[1762035203197,2.82,185.5,185.46,4.44037877]
[1762035203400,2.82,185.5,185.42,4.8557]
[1762035203601,2.82,185.5,185.43,4.44208675]
[1762035203799,2.82,185.5,185.44,4.44208675]
[1762035204100,2.82,185.5,185.45,4.44208675]
[1762035204300,2.82,185.5,185.46,4.44208675]
[1762035204594,2.82,185.5,185.42,4.8557]
[1762035204797,2.82,185.5,185.43,4.44305663]
[1762035204995,2.82,185.5,185.44,4.44305663]
[1762035205195,2.82,185.5,185.45,4.44305663]
[1762035205395,2.82,185.5,185.46,4.44305663]
[1762035205596,2.82,185.5,185.42,4.8557]
[1762035205802,2.82,185.5,185.43,4.44382987]
[1762035206098,2.82,185.5,185.44,4.44382987]
[1762035206295,2.82,185.5,185.45,4.44382987]
[1762035206499,2.82,185.5,185.46,4.44382987]
[1762035206700,2.82,185.5,185.42,4.8557]
[1762035206999,2.82,185.5,185.43,4.44401417]
[1762035207200,2.82,185.5,185.44,4.44401417]
[1762035207401,2.82,185.5,185.45,4.44401417]
[1762035207605,2.82,185.5,185.46,4.44401417]
[1762035207806,2.82,185.5,185.42,4.8557]
[1762035208003,2.82,185.5,185.43,4.4442115]
[1762035208196,2.82,185.5,185.44,4.4442115]
[1762035208501,2.82,185.5,185.45,4.4442115]
[1762035208702,2.82,185.5,185.42,4.8557]
[1762035208904,2.82,185.5,185.43,4.44413507]
[1762035209199,2.82,185.5,185.43,4.25303412]
[1762035212099,2.92,185.49,185.42,4.8557]
[1762035212403,2.92,185.49,185.41,77.1]
[1762035212707,2.92,185.48,185.42,4.25484717]
[1762035213601,2.92,185.47,185.34,5.03130169]
[1762035213800,2.92,185.47,185.35,4.25579467]
[1762035213997,2.92,185.47,185.36,4.25579467]
[1762035214193,5.29383879,185.46,185.37,4.25579467]
[1762035214406,5.29383879,185.45,185.38,4.25579467]
[1762035214606,2.88079042,185.5,185.39,4.25579467]
[1762035214607,5.29383879,185.44,185.39,4.25579467]
[1762035214797,2.37383879,185.43,185.36,4.25579467]
[1762035214998,2.37383879,185.42,185.37,9.11279467]
[1762035215311,2.37383879,185.41,185.38,4.25579467]
[1762035215603,2.37383879,185.4,185.39,4.25579467]
[1762035215904,2.37383879,185.4,185.38,4.25579467]
[1762035216106,2.92,185.47,185.39,9.11249467]
[1762035216309,2.92,185.47,185.4,4.25579467]
[1762035216310,2.37425275,185.46,185.4,4.25579467]
[1762035216609,2.37425275,185.45,185.4,4.25579467]
[1762035216798,2.37425275,185.44,185.4,4.25579467]
[1762035216996,2.37425275,185.43,185.39,4.8567]
[1762035217196,2.37425275,185.42,185.4,4.25527082]
[1762035217392,2.37425275,185.41,185.39,4.8567]
[1762035217609,2.92,185.47,185.4,4.25589573]
[1762035217804,5.29509411,185.46,185.41,4.25589573]
[1762035218110,2.37509411,185.45,185.42,4.25589529]
[1762035218403,2.37509411,185.44,185.39,4.8567]
[1762035218611,2.37509411,185.43,185.4,4.25700664]
[1762035218898,2.37509411,185.42,185.41,4.25700664]
[1762035220099,2.37509411,185.42,185.41,10.19320664]
[1762035220403,5.73,185.47,185.41,10.19320664]
[1762035220603,2.37717931,185.46,185.42,4.25700664]
[1762035220804,2.37717931,185.45,185.43,4.25700664]
[1762035221003,2.37717931,185.44,185.39,5.03130169]
[1762035221199,2.37717931,185.43,185.4,9.29079845]
[1762035221404,5.73,185.47,185.41,4.25949676]
[1762035221605,2.37783648,185.46,185.42,4.25949676]
[1762035221905,2.37783648,185.45,185.43,4.25949676]
[1762035222106,2.37783648,185.44,185.42,4.8557]
[1762035222309,2.37783648,185.43,185.42,4.8557]
[1762035222606,2.37783648,185.43,185.42,9.11644396]
[1762035228013,7.57783648,185.43,185.42,9.11644396]
[1762035229215,7.57783648,185.43,185.42,14.14774565]
[1762035231722,7.57783648,185.43,185.42,4.26074396]
[1762035232619,10.49783648,185.43,185.42,4.26074396]
[1762035242441,2.92,185.42,185.36,5.03130169]
[1762035242629,2.92,185.42,185.35,4.8575]
[1762035242630,2.92,185.4,185.35,9.88880169]
[1762035242829,5.29783648,185.39,185.35,9.88880169]
[1762035243029,2.37783648,185.38,185.35,9.88880169]
[1762035243234,2.37783648,185.37,185.35,9.88880169]
[1762035243429,2.37783648,185.36,185.35,9.88880169]
[1762035243932,2.37783648,185.36,185.33,5.03130169]
[1762035243933,2.92,185.35,185.33,5.03130169]
[1762035244131,2.37783648,185.34,185.33,5.03130169]
[1762035244333,2.37783648,185.34,185.32,5.03130169]
[1762035244529,2.37783648,185.33,185.32,5.03130169]
[1762035245838,2.37783648,185.33,185.3,11.56730226]
[1762035246041,2.92,185.35,185.3,11.56730226]
[1762035246042,2.37783648,185.32,185.3,11.56730226]
[1762035246240,2.37783648,185.31,185.3,11.56730226]
[1762035246434,3.648e-05,185.31,185.3,11.56730226]
[1762035249743,2.92,185.35,185.3,11.56730226]
[1762035249744,2.92,185.35,185.3,4.8589]
[1762035249940,2.92,185.35,185.32,5.04478739]
[1762035250441,2.92,185.35,185.31,5.04478739]
[1762035251744,5.2,185.34,185.31,5.04478739]
[1762035252047,7.88,185.34,185.31,5.04478739]
[1762035252344,7.88,185.34,185.3,86.76368739]
[1762035252848,2.68,185.33,185.3,81.7189]
[1762035254645,2.68,185.33,185.31,4.24698019]
[1762035254834,2.68,185.33,185.32,4.24698019]
[1762035255449,2.68,185.33,185.31,4.24698019]
[1762035255742,2.68,185.33,185.32,4.24698019]
[1762035256043,2.68,185.33,185.31,4.24536133]
[1762035256240,2.68,185.33,185.3,81.7189]
[1762035256442,2.68,185.33,185.31,4.24514148]
[1762035257548,2.68,185.33,185.28,5.79865582]
[1762035257752,2.68,185.33,185.29,81.06234503]
[1762035258050,2.68,185.33,185.3,4.24234503]
[1762035258235,2.68,185.33,185.29,4.24234503]
[1762035258439,2.68,185.31,185.3,4.24234503]
[1762035258641,2.68,185.31,185.29,4.24234503]
[1762035258842,2.68,185.31,185.3,4.24234503]
[1762035259048,2.68,185.31,185.29,4.24234503]
[1762035259243,2.68,185.33,185.3,4.24234503]
[1762035259445,6.28,185.32,185.29,4.24234503]
[1762035259748,8.96,185.32,185.29,4.24234503]
[1762035262340,8.96,185.32,185.28,77.75905582]
[1762035262540,8.96,185.32,185.29,4.23554776]
[1762035264846,2.8,185.31,185.29,4.23554776]
[1762035265051,2.8,185.31,185.26,46.6]
[1762035265543,2.8,185.31,185.27,4.23329411]
[1762035267048,2.8,185.31,185.27,9.09309411]
[1762035267254,2.8,185.31,185.27,4.8598]
[1762035268459,2.8,185.31,185.27,9.09231722]
[1762035269158,2.8,185.31,185.27,4.8598]
[1762035272949,2.8,185.31,185.27,9.0897833]
[1762035273958,2.8,185.31,185.25,0.93925858]
[1762035274146,2.8,185.29,185.25,0.93925858]
[1762035275356,2.8,185.29,185.24,4.8604]
[1762035275557,2.8,185.29,185.24,4.23098407]
[1762035276153,2.8,185.29,185.25,4.23098407]
[1762035276352,2.8,185.27,185.24,4.23098407]
[1762035276550,2.8,185.27,185.25,4.23098407]
[1762035276762,2.8,185.27,185.24,4.23098407]
[1762035276951,2.8,185.27,185.21,4.23098407]
[1762035277152,2.8,185.27,185.22,4.23098407]
[1762035277456,2.8,185.27,185.23,4.23098407]
[1762035277659,2.8,185.27,185.24,4.23098407]
[1762035277861,2.69,185.25,185.21,4.23098407]
[1762035278059,2.69,185.25,185.22,4.23098407]
[1762035278261,2.69,185.25,185.23,4.23098407]
[1762035278457,2.69,185.25,185.2,4.23098407]
[1762035278763,2.69,185.25,185.21,4.23098407]
[1762035278965,2.69,185.23,185.22,4.23098407]
[1762035280355,2.69,185.23,185.19,3.6014658]
[1762035280356,2.69,185.22,185.19,3.6014658]
[1762035280560,1.84365592,185.24,185.13,5.04478739]
[1762035280561,2.69,185.2,185.13,5.04478739]
[1762035280759,2.69,185.2,185.13,0.93980394]
[1762035281247,6.70425592,185.24,185.13,0.93980394]
[1762035281248,2.69,185.19,185.13,10.84789133]
[1762035281462,2.69,185.19,185.13,5.98459133]
[1762035281865,2.69,185.19,185.13,10.84789133]
[1762035282159,2.69,185.19,185.14,5.04478739]
[1762035282562,2.69,185.19,185.13,5.98459133]
[1762035282765,4.8601,185.27,185.13,5.98459133]
[1762035282766,7.57,185.18,185.13,5.98459133]
[1762035283261,7.57,185.18,185.14,4.8632]
[1762035283262,2.69,185.17,185.14,4.8632]
[1762035284166,2.69,185.17,185.14,9.90798739]
[1762035284356,4.88,185.18,185.14,9.90798739]
[1762035284357,4.88,185.18,185.16,4.8627]
[1762035284551,7.57,185.18,185.16,4.8627]
[1762035285059,4.88,185.18,185.16,4.8627]
[1762035286967,7.57,185.18,185.16,4.8627]
[1762035287360,2.69,185.17,185.16,4.8627]
[1762035289865,2.69,185.17,185.16,76.8]
[1762035291366,2.69,185.17,185.14,81.683]
[1762035292461,2.69,185.17,185.15,4.22952868]
[1762035292660,2.69,185.17,185.16,4.22952868]
[1762035293364,2.69,185.17,185.14,81.683]
[1762035293365,2.69,185.17,185.15,4.22952868]
[1762035293564,2.69,185.17,185.16,4.22952868]
[1762035293768,2.69,185.17,185.15,4.22952868]
[1762035294069,2.69,185.17,185.16,4.22952868]
[1762035294370,2.69,185.17,185.15,4.22952868]
[1762035294563,2.69,185.17,185.16,4.22952868]
[1762035294755,2.69,185.17,185.15,4.22952868]
[1762035294956,2.69,185.17,185.16,4.22952868]
[1762035295157,2.69,185.17,185.15,4.22952868]
[1762035295361,2.69,185.17,185.13,4.22952868]
[1762035297256,2.69,185.17,185.12,81.04952868]
[1762035297461,2.69,185.17,185.13,4.22952868]
[1762035298172,2.69,185.15,185.13,4.22952868]
[1762035298773,2.69,185.15,185.13,3.72952868]
[1762035300471,2.69,185.15,185.13,8.59302868]
[1762035300680,2.69,185.15,185.13,3.72952868]
[1762035300868,2.69,185.15,185.11,86.16319449]
[1762035301476,4.59,185.16,185.11,86.16319449]
[1762035301671,4.59,185.16,185.11,91.20798188]
[1762035301868,4.59,185.16,185.14,4.8632]
[1762035302063,2.69,185.21,185.15,76.82]
[1762035302270,2.69,185.19,185.15,76.82]
[1762035302867,2.69,185.19,185.16,76.82]
[1762035303062,5.22,185.2,185.16,76.82]
[1762035304065,2.69,185.19,185.14,5.04478739]
[1762035304272,2.69,185.19,185.14,76.82]
[1762035305280,5.51,185.19,185.14,76.82]
[1762035305678,5.51,185.19,185.17,4.8622]
[1762035306073,5.51,185.19,185.18,76.9]
[1762035307672,5.51,185.19,185.14,9.90778739]
[1762035307881,2.87,185.18,185.15,76.9]
[1762035308984,5.51,185.19,185.15,76.9]
[1762035309284,8.38,185.19,185.15,76.9]
[1762035309588,5.51,185.19,185.16,76.92]
[1762035310882,5.51,185.19,185.17,4.31640407]
[1762035311081,5.51,185.19,185.18,4.31640407]
[1762035313278,5.51,185.19,185.14,5.04478739]
[1762035313279,2.87,185.18,185.15,76.88]
[1762035313580,5.22834201,185.17,185.16,4.32034414]
[1762035314186,5.22834201,185.17,185.15,76.88]
[1762035314483,2.87,185.17,185.16,4.28970742]
[1762035314689,5.22897609,185.17,185.16,4.28970742]
[1762035315184,2.87,185.16,185.11,14.38798188]
[1762035315385,2.87,185.16,185.12,81.18971479]
[1762035315591,2.87,185.16,185.13,4.28971479]
[1762035315784,2.87,185.16,185.14,4.28971479]
[1762035315978,2.87,185.16,185.15,4.28971479]
[1762035316178,5.22976336,185.16,185.15,4.28971479]
[1762035316886,2.35976336,185.16,185.15,4.28971479]
[1762035319592,2.35976336,185.16,185.15,9.15271479]
[1762035321491,5.51,185.19,185.15,9.15271479]
[1762035321681,2.7,185.18,185.16,86.23482232]
[1762035321992,2.7,185.18,185.17,81.18971479]
[1762035322895,2.7,185.18,185.17,4.28971479]
[1762035323093,2.7,185.18,185.17,81.20971479]
[1762035323394,7.92,185.2,185.17,81.20971479]
[1762035323597,7.92,185.2,185.18,4.28971479]
[1762035323896,7.92,185.2,185.19,4.28971479]
[1762035325387,7.92,185.2,185.19,1.28856569]
[1762035325593,7.92,185.2,185.13,81.92510753]
[1762035325594,2.7,185.19,185.13,81.92510753]
[1762035325782,2.7,185.18,185.14,5.04510753]
[1762035325980,2.7,185.18,185.13,81.92510753]
[1762035326693,2.7,185.18,185.13,76.88]
[1762035328386,2.7,185.18,185.12,9.90870753]
[1762035328586,2.7,185.18,185.13,76.92]
[1762035329192,2.7,185.18,185.13,81.96510753]
[1762035330086,2.7,185.18,185.14,2.73]
[1762035330291,2.7,185.18,185.14,5.04510753]
[1762035332289,5.24,185.17,185.14,5.04510753]
[1762035332491,2.7,185.16,185.14,7.77510753]
[1762035333193,2.7,185.16,185.14,5.04510753]
[1762035333493,2.62161956,185.15,185.14,5.04510753]
[1762035334494,2.7,185.14,185.12,5.04510753]
[1762035334695,5.32161956,185.13,185.12,5.04510753]
[1762035337491,2.62161956,185.13,185.12,12.37913837]
[1762035337690,2.62161956,185.13,185.12,2.97]
[1762035337889,2.62161956,185.13,185.12,12.38371974]
[1762035338290,2.62161956,185.13,185.12,7.33403084]
[1762035338493,2.62161956,185.13,185.12,4.36403084]
[1762035343305,5.43161956,185.13,185.12,4.36403084]
[1762035344007,2.62161956,185.13,185.12,4.36403084]
[1762035345509,5.43161956,185.13,185.12,4.36403084]
[1762035348605,5.43161956,185.13,185.12,81.22403084]
[1762035348911,5.43161956,185.13,185.12,4.36403084]
[1762035350521,2.81,185.13,185.12,4.36403084]
[1762035350723,5.39396602,185.13,185.12,4.36403084]
[1762035351721,2.58396602,185.13,185.12,4.36403084]
[1762035351913,2.58396602,185.13,185.12,7.33403084]
[1762035352109,2.58396602,185.13,185.12,4.36403084]
[1762035355026,5.39396602,185.13,185.12,4.36403084]
[1762035355618,2.81,185.12,185.11,0.79703945]
[1762035355818,5.39396602,185.12,185.11,0.79703945]
[1762035357221,2.58396602,185.12,185.11,3.76703945]
[1762035357614,2.58396602,185.12,185.11,77.65703945]
[1762035359625,5.39396602,185.12,185.11,77.65703945]
[1762035359827,2.58396602,185.12,185.11,77.65703945]
[1762035361121,5.39396602,185.12,185.11,0.79703945]
[1762035363832,2.58396602,185.12,185.11,0.79703945]
[1762035364027,2.58396602,185.12,185.11,3.76703945]
[1762035364525,5.39396602,185.12,185.11,0.79703945]
[1762035365123,2.58396602,185.12,185.11,0.79703945]
[1762035366332,2.58396602,185.12,185.11,3.76703945]
[1762035367735,2.58396602,185.12,185.11,8.08802139]
[1762035368426,2.58396602,185.12,185.11,5.11802139]
[1762035368725,2.58396602,185.12,185.11,8.05802139]
[1762035371134,2.58506841,185.12,185.11,8.05802139]
[1762035372836,2.58506841,185.12,185.11,13.10771029]
[1762035373530,2.58506841,185.12,185.11,5.11802139]
[1762035373733,5.39506841,185.12,185.11,5.11802139]
[1762035374127,5.3952178,185.12,185.11,5.11802139]
[1762035376636,5.40397078,185.12,185.11,5.11802139]
[1762035389133,5.40397078,185.12,185.11,0.79703945]
[1762035391342,2.71,185.09,185.06,4.29044067]
[1762035391537,2.71,185.07,185.03,2.83]
[1762035391737,5.30397078,185.06,185.04,4.28991818]
[1762035391937,2.59397078,185.05,185.03,2.83]
[1762035392139,2.59397078,185.04,185.03,2.83]
[1762035392333,2.59397078,185.04,185.03,7.11992094]
[1762035394735,5.30397078,185.04,185.03,4.28992094]
[1762035395447,2.59397078,185.04,185.03,7.11992094]
[1762035399955,2.59397078,185.04,185.03,4.28992094]
[1762035400151,5.31397078,185.04,185.03,4.28992094]
[1762035400353,2.59397078,185.04,185.03,7.10992094]
[1762035405455,2.59397078,185.04,184.99,2.82]
[1762035405651,2.59397078,185.03,185.01,2.82]
[1762035405856,2.59397078,185.02,185.01,2.82]
[1762035406052,2.59397078,185.02,185.01,7.09887229]
[1762035415975,47.16372115,185.16,185.01,4.27887229]
[1762035415976,2.72,185.11,185.01,4.27887229]
[1762035416181,2.72,185.11,185.02,7.09887229]
[1762035416383,2.72,185.11,185.03,4.27887229]
[1762035416581,2.72,185.11,185.04,4.27887229]
[1762035416782,2.72,185.11,185.02,2.82]
[1762035417080,2.72,185.1,185.03,4.27993587]
[1762035417280,2.72,185.1,185.04,4.27993587]
[1762035417482,2.72,185.1,185.02,2.82]
[1762035417671,2.72,185.1,185.03,4.28065222]
[1762035417869,2.72,185.1,185.04,4.28065222]
[1762035418072,2.72,185.1,185.02,2.82]
[1762035418269,2.72,185.1,185.03,4.28065239]
[1762035418482,2.72,185.1,185.04,4.28065239]
[1762035418682,2.72,185.1,185.02,2.82]
[1762035418683,2.72,185.09,185.02,2.82]
[1762035418885,2.72,185.09,185.03,4.28155029]
[1762035419084,2.72,185.09,185.04,4.28155029]
[1762035419286,2.72,185.09,185.02,2.82]
[1762035419487,2.72,185.09,185.03,4.23419733]
[1762035419687,2.72,185.09,185.04,4.23419733]
[1762035419879,2.72,185.09,185.02,2.82]
[1762035420081,2.72,185.09,185.03,4.23419773]
[1762035420285,2.72,185.09,185.04,4.23419773]
[1762035420485,2.72,185.09,185.02,2.82]
[1762035420687,2.72,185.09,185.03,4.23487193]
[1762035420876,2.72,185.09,185.04,4.23487193]
[1762035421081,2.72,185.09,185.02,2.82]
[1762035421282,2.72,185.09,185.03,4.23487233]
[1762035421489,2.72,185.09,185.04,4.23487233]
[1762035421690,2.72,185.09,185.02,2.82]
[1762035421894,2.72,185.09,185.03,4.23569787]
[1762035422186,2.72,185.09,185.04,4.23569787]
[1762035422389,2.72,185.09,185.02,2.82]
[1762035422696,2.72,185.09,185.03,4.23635462]
[1762035422883,2.72,185.09,185.04,4.23635462]
[1762035423084,2.72,185.09,185.02,2.82]
[1762035423291,2.72,185.09,185.03,4.23635444]
[1762035423490,2.72,185.09,185.04,4.23635444]
[1762035423689,2.72,185.09,185.02,2.82]
[1762035423885,2.72,185.09,185.04,2.82]
[1762035424084,2.89343455,185.12,184.99,6.70840226]
[1762035424085,2.72,185.11,185.06,2.82]
[1762035424290,2.72,185.14,185.08,2.82]
[1762035424490,2.72,185.14,185.09,7.05693344]
[1762035424790,2.72,185.14,185.09,2.82]
[1762035424989,2.72,185.14,185.04,5.0496889]
[1762035425290,2.72,185.11,185.05,4.23712422]
[1762035425487,2.72,185.11,185.06,4.23712422]
[1762035425790,2.72,185.11,185.07,4.23712422]
[1762035425992,2.72,185.11,185.04,2.82]
[1762035426186,2.72,185.11,185.05,4.23851142]
[1762035426390,2.72,185.11,185.06,4.23851142]
[1762035426581,2.72,185.11,185.07,4.23851142]
[1762035426785,2.72,185.11,185.04,2.82]